[Event "16th EWICC 2015"]
[Site "Kutaisi"]
[Date "2015.06.01"]
[Round "2"]
[White "Jalaghonia, Nino"]
[Black "Melashvili, Nino"]
[Result "0-1"]
[ECO "B01"]
[WhiteElo "1865"]
[BlackElo "2173"]
[Annotator "Robot 11"]
[PlyCount "210"]
[EventDate "2015.??.??"]
[EventCountry "GEO"]
[TimeControl "900+10"]

1. e4 {[%emt 0:00:04]} d5 {[%emt 0:00:02]} 2. exd5 {[%emt 0:00:03]} Nf6 {[%emt
0:00:01]} 3. Nc3 {[%emt 0:00:02]} Nxd5 {[%emt 0:00:04]} 4. Bc4 {[%emt 0:01:13]}
Nxc3 {[%emt 0:00:09]} 5. Qf3 {[%emt 0:01:50]} e6 {[%emt 0:00:12]} 6. Qxc3 {
[%emt 0:00:03]} Nc6 {[%emt 0:00:06]} 7. Nf3 {[%emt 0:00:19]} Qd6 {[%emt 0:00:
28]} 8. d4 {[%emt 0:00:41]} Qb4 {[%emt 0:01:06]} 9. Bd2 {[%emt 0:00:21]} Be7 {
[%emt 0:00:37]} 10. a3 {[%emt 0:00:12]} Qxc3 {[%emt 0:00:23]} 11. Bxc3 {[%emt
0:00:02]} Bf6 {[%emt 0:00:01]} 12. O-O-O {[%emt 0:00:05]} O-O {[%emt 0:00:49]}
13. Ne5 {[%emt 0:00:11]} Nxe5 {[%emt 0:00:52]} 14. dxe5 {[%emt 0:00:01]} Be7 {
[%emt 0:00:02]} 15. h4 {[%emt 0:00:24]} a6 {[%emt 0:00:04]} 16. g4 {[%emt 0:00:
09]} b5 {[%emt 0:00:07]} 17. Be2 {[%emt 0:00:19]} Bb7 {[%emt 0:00:04]} 18. f3 {
[%emt 0:00:05]} Bd5 {[%emt 0:00:07]} 19. g5 {[%emt 0:00:23]} c5 20. Rhg1 {
[%emt 0:01:35]} b4 {[%emt 0:00:27]} 21. axb4 {[%emt 0:00:17]} cxb4 {[%emt 0:00:
01]} 22. Bd4 {[%emt 0:00:51]} a5 {[%emt 0:00:59]} 23. b3 {[%emt 0:01:31]} a4 {
[%emt 0:01:10]} 24. bxa4 {[%emt 0:00:36]} Rxa4 {[%emt 0:00:05]} 25. Kd2 {[%emt
0:01:35]} b3 {[%emt 0:00:24]} 26. c3 {[%emt 0:00:33]} Ra2+ {[%emt 0:04:43]} 27.
Ke3 {[%emt 0:00:08]} Rfa8 {[%emt 0:00:29]} 28. Rb1 {[%emt 0:02:10]} Rb8 {[%emt
0:04:21]} 29. Rgd1 {[%emt 0:01:34]} b2 {[%emt 0:00:21]} 30. Bd3 {[%emt 0:00:56]
} g6 {[%emt 0:00:05]} 31. c4 {[%emt 0:00:07]} Bc6 {[%emt 0:00:04]} 32. Rd2 {
[%emt 0:00:04]} Ba3 {[%emt 0:00:08]} 33. Bc2 {[%emt 0:00:38]} Bb4 {[%emt 0:00:
33]} 34. Rd3 {[%emt 0:00:16]} Ba3 {[%emt 0:00:04]} 35. Bb3 {[%emt 0:00:17]} Ra1
{[%emt 0:00:26]} 36. Rxa1 {[%emt 0:00:01]} bxa1=Q {[%emt 0:00:02]} 37. Bxa1 {
[%emt 0:00:02]} Bc5+ {[%emt 0:00:03]} 38. Ke2 {[%emt 0:00:17]} Ra8 {[%emt 0:00:
02]} 39. Bb2 {[%emt 0:00:02]} Ba3 {[%emt 0:00:05]} 40. Bc3 {[%emt 0:00:34]} Rb8
{[%emt 0:00:04]} 41. Ba5 {[%emt 0:00:15]} Kg7 {[%emt 0:00:09]} 42. Bd8 {[%emt
0:00:12]} Bc5 {[%emt 0:00:07]} 43. Bf6+ {[%emt 0:00:02]} Kf8 {[%emt 0:00:04]}
44. Rd8+ {[%emt 0:00:24]} Rxd8 {[%emt 0:00:01]} 45. Bxd8 {[%emt 0:00:01]} Ke8 {
[%emt 0:00:00]} 46. Ba5 {[%emt 0:00:15]} Bg1 {[%emt 0:00:05]} 47. f4 {[%emt 0:
00:23]} Bh2 {[%emt 0:00:03]} 48. Ke3 {[%emt 0:00:24]} Bg3 {[%emt 0:00:01]} 49.
Bc2 {[%emt 0:00:12]} Bxh4 {[%emt 0:00:03]} 50. Bd2 {[%emt 0:00:15]} Bg3 {[%emt
0:00:03]} 51. Kd4 {[%emt 0:00:03]} Kd7 {[%emt 0:00:05]} 52. Be3 {[%emt 0:00:12]
} Be1 {[%emt 0:00:05]} 53. Kc5 {[%emt 0:00:14]} Ba5 {[%emt 0:00:25]} 54. Kd4 {
[%emt 0:00:03]} Bb4 {[%emt 0:00:19]} 55. c5 {[%emt 0:00:02]} Bb5 {[%emt 0:00:
29]} 56. Bd3 {[%emt 0:00:03]} Bxd3 {[%emt 0:00:25]} 57. Kxd3 {[%emt 0:00:01]}
Kc6 {[%emt 0:00:01]} 58. Kc4 {[%emt 0:00:01]} Ba3 {[%emt 0:00:05]} 59. Kd3 {
[%emt 0:00:50]} Kd5 60. c6 {[%emt 0:00:07]} Kxc6 {[%emt 0:00:39]} 61. Ke4 {
[%emt 0:00:01]} Bb2 {[%emt 0:00:25]} 62. Bd2 {[%emt 0:00:10]} Kc5 {[%emt 0:00:
02]} 63. Be3+ {[%emt 0:00:05]} Kc4 {[%emt 0:00:01]} 64. Bd2 {[%emt 0:00:04]}
Ba3 {[%emt 0:00:44]} 65. Be1 {[%emt 0:00:15]} Bf8 {[%emt 0:00:08]} 66. Bd2 {
[%emt 0:00:12]} h5 {[%emt 0:00:03]} 67. gxh6 Bxh6 {[%emt 0:00:01]} 68. Be1 {
[%emt 0:00:23]} Bf8 {[%emt 0:00:24]} 69. Bh4 {[%emt 0:00:04]} Kc3 {[%emt 0:00:
17]} 70. Be1+ {[%emt 0:00:12]} Kc2 {[%emt 0:00:00]} 71. Ba5 {[%emt 0:00:11]}
Kd1 {[%emt 0:00:03]} 72. Bc3 {[%emt 0:00:07]} Ke2 {[%emt 0:00:04]} 73. Bd4 {
[%emt 0:00:07]} Bb4 {[%emt 0:00:08]} 74. Bb6 {[%emt 0:00:13]} Be1 {[%emt 0:00:
14]} 75. Bc5 {[%emt 0:00:08]} Bf2 {[%emt 0:00:03]} 76. Bb4 {[%emt 0:00:19]} Bb6
{[%emt 0:00:17]} 77. Bf8 {[%emt 0:00:07]} Kf2 {[%emt 0:00:06]} 78. Be7 {[%emt
0:00:15]} Kg3 {[%emt 0:00:04]} 79. Bg5 {[%emt 0:00:09]} Kg4 {[%emt 0:00:07]}
80. Bh6 {[%emt 0:00:14]} Bf2 {[%emt 0:00:31]} 81. Bg5 {[%emt 0:00:22]} Bg3 {
[%emt 0:01:24]} 82. Bh6 {[%emt 0:00:12]} Bh4 {[%emt 0:00:17]} 83. Bf8 {[%emt 0:
00:12]} Bg3 {[%emt 0:00:03]} 84. Bh6 {[%emt 0:00:01]} Bh2 {[%emt 0:00:01]} 85.
Bg5 {[%emt 0:00:03]} Bg1 {[%emt 0:00:02]} 86. Bh6 {[%emt 0:00:02]} Bc5 {[%emt
0:00:02]} 87. Bg5 {[%emt 0:00:03]} Bf8 {[%emt 0:00:01]} 88. Ke3 {[%emt 0:00:08]
} Kf5 {[%emt 0:00:01]} 89. Bh4 {[%emt 0:00:29]} Bh6 {[%emt 0:00:19]} 90. Bg3 {
[%emt 0:00:06]} g5 {[%emt 0:00:16]} 91. fxg5 {[%emt 0:00:02]} Bxg5+ {[%emt 0:
00:01]} 92. Kf3 {[%emt 0:00:20]} Bd2 {[%emt 0:00:01]} 93. Bh4 {[%emt 0:00:23]}
Kxe5 {[%emt 0:00:02]} 94. Bg3+ {[%emt 0:00:04]} Kf5 {[%emt 0:00:03]} 95. Bf2 {
[%emt 0:00:03]} Bf4 {[%emt 0:00:09]} 96. Bc5 {[%emt 0:00:02]} e5 {[%emt 0:00:
04]} 97. Bb6 {[%emt 0:00:03]} e4+ {[%emt 0:00:01]} 98. Kf2 {[%emt 0:00:01]} Kg4
{[%emt 0:00:02]} 99. Bd4 {[%emt 0:00:03]} f5 {[%emt 0:00:01]} 100. Bc5 {[%emt
0:00:02]} Bg5 {[%emt 0:00:04]} 101. Bd6 {[%emt 0:00:04]} f4 {[%emt 0:00:04]}
102. Bc5 {[%emt 0:00:06]} Bh4+ {[%emt 0:00:22]} 103. Ke2 {[%emt 0:00:02]} Kg3 {
[%emt 0:00:27]} 104. Bf2+ {[%emt 0:00:02]} Kh3 {[%emt 0:00:01]} 105. Bd4 {
[%emt 0:00:04]} Kg2 {[%emt 0:00:01]} 0-1

[Event "16th EWICC 2015"]
[Site "Kutaisi"]
[Date "2015.06.01"]
[Round "2"]
[White "Mammadzada, Gunay"]
[Black "Esadze, Tamar"]
[Result "1-0"]
[ECO "B44"]
[WhiteElo "2336"]
[BlackElo "1697"]
[Annotator "Robot 11"]
[PlyCount "77"]
[EventDate "2015.??.??"]
[EventCountry "GEO"]
[TimeControl "900+10"]

1. e4 {[%emt 0:00:02]} c5 {[%emt 0:00:01]} 2. Nf3 {[%emt 0:00:01]} Nc6 {[%emt
0:00:01]} 3. d4 {[%emt 0:00:01]} cxd4 {[%emt 0:00:01]} 4. Nxd4 {[%emt 0:00:02]}
e6 {[%emt 0:00:01]} 5. Nb5 {[%emt 0:00:02]} d6 {[%emt 0:00:03]} 6. Bf4 {[%emt
0:00:01]} e5 {[%emt 0:00:01]} 7. Be3 {[%emt 0:00:03]} Nf6 {[%emt 0:00:40]} 8.
Bg5 {[%emt 0:00:01]} a6 {[%emt 0:01:36]} 9. Bxf6 {[%emt 0:00:35]} gxf6 {[%emt
0:00:21]} 10. N5c3 {[%emt 0:00:04]} Be6 {[%emt 0:00:12]} 11. Nd2 {[%emt 0:00:
03]} b5 {[%emt 0:00:56]} 12. a4 {[%emt 0:00:40]} b4 {[%emt 0:00:22]} 13. Nd5 {
[%emt 0:00:02]} f5 {[%emt 0:02:02]} 14. Bc4 {[%emt 0:01:13]} f4 {[%emt 0:01:31]
} 15. g3 {[%emt 0:01:45]} Rg8 {[%emt 0:00:28]} 16. Qf3 {[%emt 0:01:33]} Nd4 {
[%emt 0:00:27]} 17. Qd3 {[%emt 0:00:03]} Bg4 {[%emt 0:01:00]} 18. f3 {[%emt 0:
00:35]} Bh3 {[%emt 0:00:24]} 19. Nxb4 {[%emt 0:03:34]} fxg3 {[%emt 0:00:36]}
20. O-O-O {[%emt 0:00:15]} g2 {[%emt 0:00:22]} 21. Rhg1 {[%emt 0:00:04]} Qa5 {
[%emt 0:01:12]} 22. Nd5 {[%emt 0:00:49]} Be7 {[%emt 0:01:21]} 23. c3 {[%emt 0:
00:41]} Ne6 {[%emt 0:00:34]} 24. f4 {[%emt 0:01:07]} Bg4 {[%emt 0:00:34]} 25.
Rxg2 {[%emt 0:00:13]} Qxa4 {[%emt 0:00:29]} 26. Rdg1 {[%emt 0:01:30]} Nc5 {
[%emt 0:00:50]} 27. Qc2 {[%emt 0:00:08]} Qd7 {[%emt 0:00:39]} 28. Nb6 {[%emt 0:
00:16]} Qb7 {[%emt 0:00:53]} 29. Nxa8 {[%emt 0:00:04]} Qxa8 {[%emt 0:00:15]}
30. Rxg4 {[%emt 0:00:05]} Rxg4 {[%emt 0:00:08]} 31. Rxg4 {[%emt 0:00:02]} Kd7 {
[%emt 0:00:14]} 32. b4 {[%emt 0:00:08]} Ne6 {[%emt 0:00:13]} 33. Qa4+ {[%emt 0:
00:03]} Kc7 {[%emt 0:00:06]} 34. Bd5 {[%emt 0:00:04]} Qa7 {[%emt 0:00:06]} 35.
Qc6+ {[%emt 0:00:08]} Kd8 {[%emt 0:00:10]} 36. Bxe6 {[%emt 0:00:12]} fxe6 {
[%emt 0:00:09]} 37. Rg8+ {[%emt 0:00:05]} Bf8 {[%emt 0:00:04]} 38. Rxf8+ {
[%emt 0:00:04]} Ke7 {[%emt 0:00:01]} 39. Qe8# {[%emt 0:00:03]} 1-0

[Event "16th EWICC 2015"]
[Site "Kutaisi"]
[Date "2015.06.01"]
[Round "2"]
[White "Nikoladze, Sopio"]
[Black "Kostava, Elene"]
[Result "1-0"]
[ECO "D04"]
[WhiteElo "2155"]
[BlackElo "1691"]
[Annotator "Robot 11"]
[PlyCount "99"]
[EventDate "2015.??.??"]
[EventCountry "GEO"]
[TimeControl "900+10"]

1. d4 {[%emt 0:00:11]} d5 {[%emt 0:00:01]} 2. Nf3 {[%emt 0:00:00]} Nf6 {[%emt
0:00:02]} 3. e3 {[%emt 0:00:00]} Bg4 {[%emt 0:00:11]} 4. c4 {[%emt 0:00:00]} e6
{[%emt 0:00:16]} 5. Qb3 {[%emt 0:00:20]} Qc8 {[%emt 0:00:35]} 6. Ne5 {[%emt 0:
00:10]} Bf5 {[%emt 0:00:56]} 7. f3 {[%emt 0:00:12]} c6 {[%emt 0:01:09]} 8. g4 {
[%emt 0:00:19]} Bxb1 {[%emt 0:00:56]} 9. Rxb1 {[%emt 0:00:05]} Bd6 {[%emt 0:00:
30]} 10. g5 {[%emt 0:02:05]} Nfd7 {[%emt 0:00:23]} 11. f4 {[%emt 0:00:28]} dxc4
{[%emt 0:00:49]} 12. Nxc4 {[%emt 0:00:31]} Bc7 {[%emt 0:00:24]} 13. Bg2 {[%emt
0:00:58]} Nb6 {[%emt 0:01:11]} 14. O-O {[%emt 0:01:04]} h6 {[%emt 0:01:00]} 15.
g6 {[%emt 0:00:38]} f6 {[%emt 0:01:13]} 16. Nxb6 {[%emt 0:00:18]} Bxb6 {[%emt
0:00:13]} 17. Bh3 {[%emt 0:00:37]} Ke7 {[%emt 0:01:50]} 18. f5 {[%emt 0:00:02]}
Rd8 {[%emt 0:00:07]} 19. fxe6 {[%emt 0:00:14]} Rd5 {[%emt 0:00:37]} 20. Bf5 {
[%emt 0:00:41]} Na6 {[%emt 0:01:09]} 21. Bd2 {[%emt 0:01:28]} Qc7 {[%emt 0:00:
46]} 22. Rbc1 {[%emt 0:00:58]} Qd6 {[%emt 0:00:04]} 23. Be1 {[%emt 0:00:33]}
Rb5 {[%emt 0:01:23]} 24. Qc2 {[%emt 0:02:28]} Rd8 {[%emt 0:00:43]} 25. Bg3 {
[%emt 0:00:08]} Qd5 {[%emt 0:00:02]} 26. Rcd1 {[%emt 0:01:08]} Qxa2 {[%emt 0:
00:56]} 27. Rf2 {[%emt 0:00:03]} Nb4 {[%emt 0:00:19]} 28. Qc1 {[%emt 0:00:28]}
Rdd5 {[%emt 0:00:22]} 29. Bg4 {[%emt 0:00:34]} Rg5 {[%emt 0:00:35]} 30. Be2 {
[%emt 0:00:11]} Ra5 {[%emt 0:00:29]} 31. Bc4 {[%emt 0:00:18]} Qa4 {[%emt 0:00:
12]} 32. b3 {[%emt 0:00:35]} Qa3 {[%emt 0:00:08]} 33. Qb1 {[%emt 0:00:05]} Nd5
{[%emt 0:00:25]} 34. Qd3 {[%emt 0:00:27]} Qb4 {[%emt 0:00:16]} 35. Kh1 {[%emt
0:00:26]} Nc3 {[%emt 0:00:14]} 36. Rdf1 {[%emt 0:00:12]} Nd5 {[%emt 0:00:13]}
37. Bh4 {[%emt 0:00:16]} Rh5 {[%emt 0:00:09]} 38. Bg3 {[%emt 0:00:25]} Bd8 {
[%emt 0:00:14]} 39. e4 {[%emt 0:00:06]} Nb6 {[%emt 0:00:12]} 40. e5 {[%emt 0:
00:10]} Ke8 {[%emt 0:00:09]} 41. exf6 {[%emt 0:00:09]} Bxf6 {[%emt 0:00:01]}
42. Rxf6 {[%emt 0:00:09]} gxf6 {[%emt 0:00:03]} 43. g7 {[%emt 0:00:11]} Rag5 {
[%emt 0:00:20]} 44. Qh7 {[%emt 0:00:11]} Rxg3 {[%emt 0:00:21]} 45. g8=Q+ {
[%emt 0:00:19]} Rxg8 {[%emt 0:00:03]} 46. Qxg8+ {[%emt 0:00:02]} Ke7 {[%emt 0:
00:05]} 47. Qf7+ {[%emt 0:00:03]} Kd8 {[%emt 0:00:02]} 48. Qxh5 {[%emt 0:00:06]
} Nxc4 {[%emt 0:00:02]} 49. bxc4 {[%emt 0:00:33]} Qxc4 {[%emt 0:00:01]} 50. Qf5
{[%emt 0:00:41]} 1-0

[Event "16th EWICC 2015"]
[Site "Kutaisi"]
[Date "2015.06.01"]
[Round "2"]
[White "Schleining, Zoya"]
[Black "Paehtz, Elisabeth"]
[Result "0-1"]
[ECO "A04"]
[WhiteElo "2375"]
[BlackElo "2473"]
[Annotator "Robot 11"]
[PlyCount "56"]
[EventDate "2015.??.??"]
[EventCountry "GEO"]
[TimeControl "900+10"]

1. Nf3 {[%emt 0:00:02]} d6 {[%emt 0:00:21]} 2. d4 {[%emt 0:00:03]} g6 {[%emt 0:
00:01]} 3. e4 {[%emt 0:00:06]} Bg7 {[%emt 0:00:03]} 4. Be3 {[%emt 0:00:05]} a6
{[%emt 0:00:46]} 5. c4 {[%emt 0:00:09]} Nc6 {[%emt 0:00:37]} 6. Nc3 {[%emt 0:
00:14]} Bg4 {[%emt 0:00:03]} 7. d5 {[%emt 0:00:49]} Ne5 {[%emt 0:00:24]} 8. Be2
{[%emt 0:00:11]} Bxf3 {[%emt 0:00:02]} 9. gxf3 {[%emt 0:00:03]} c5 {[%emt 0:00:
11]} 10. f4 {[%emt 0:00:23]} Nd7 {[%emt 0:00:02]} 11. Qd2 {[%emt 0:00:11]} Ngf6
{[%emt 0:00:05]} 12. h4 {[%emt 0:00:19]} h5 {[%emt 0:00:44]} 13. O-O-O {[%emt
0:00:55]} b5 {[%emt 0:00:06]} 14. cxb5 {[%emt 0:00:09]} axb5 {[%emt 0:00:01]}
15. Bxb5 {[%emt 0:00:04]} Ng4 {[%emt 0:00:06]} 16. Kb1 {[%emt 0:00:25]} O-O {
[%emt 0:00:10]} 17. Rc1 {[%emt 0:01:26]} Ra7 {[%emt 0:01:17]} 18. Rc2 {[%emt 0:
01:17]} Qa5 {[%emt 0:00:20]} 19. Bxd7 {[%emt 0:00:46]} Rxd7 {[%emt 0:00:08]}
20. Qd3 {[%emt 0:01:01]} Rb8 {[%emt 0:01:50]} 21. Ka1 {[%emt 0:01:04]} Rb4 {
[%emt 0:01:33]} 22. Rb1 {[%emt 0:01:52]} Ra7 {[%emt 0:00:16]} 23. Bc1 {[%emt 0:
01:01]} c4 {[%emt 0:00:37]} 24. Qg3 {[%emt 0:00:52]} Ra4 {[%emt 0:02:22]} 25.
a3 {[%emt 0:01:34]} Rb4 {[%emt 0:00:00]} 26. Bd2 {[%emt 0:01:05]} Rb3 {[%emt 0:
00:30]} 27. Rd1 {[%emt 0:00:38]} Rxa3+ {[%emt 0:00:21]} 28. bxa3 {[%emt 0:00:
15]} Qxa3+ {[%emt 0:00:01]} 0-1

[Event "16th EWICC 2015"]
[Site "Kutaisi"]
[Date "2015.06.01"]
[Round "2"]
[White "Khomeriki, Ketevan"]
[Black "Vakhania, Alexandra"]
[Result "0-1"]
[ECO "B10"]
[WhiteElo "1861"]
[BlackElo "2130"]
[Annotator "Robot 11"]
[PlyCount "74"]
[EventDate "2015.??.??"]
[EventCountry "GEO"]
[TimeControl "900+10"]

1. e4 {[%emt 0:00:01]} c6 {[%emt 0:00:01]} 2. d3 {[%emt 0:00:03]} d5 {[%emt 0:
00:02]} 3. Qe2 {[%emt 0:00:06]} dxe4 {[%emt 0:00:28]} 4. dxe4 {[%emt 0:00:02]}
e5 {[%emt 0:00:01]} 5. g3 {[%emt 0:00:12]} Qc7 {[%emt 0:00:02]} 6. Bg2 {[%emt
0:00:06]} Be6 {[%emt 0:00:02]} 7. f4 {[%emt 0:00:04]} f6 {[%emt 0:00:16]} 8.
fxe5 {[%emt 0:00:19]} fxe5 {[%emt 0:00:36]} 9. Nf3 {[%emt 0:00:37]} Nf6 {[%emt
0:00:02]} 10. O-O {[%emt 0:02:20]} Bc5+ {[%emt 0:00:01]} 11. Kh1 {[%emt 0:00:
18]} Nbd7 {[%emt 0:00:04]} 12. Nbd2 {[%emt 0:00:57]} O-O-O {[%emt 0:00:06]} 13.
c3 {[%emt 0:00:41]} h5 {[%emt 0:00:11]} 14. b4 {[%emt 0:00:09]} Bb6 {[%emt 0:
00:01]} 15. a4 {[%emt 0:00:05]} a6 {[%emt 0:00:36]} 16. b5 {[%emt 0:01:48]}
cxb5 {[%emt 0:00:06]} 17. axb5 {[%emt 0:00:06]} a5 {[%emt 0:00:00]} 18. Ng5 {
[%emt 0:00:14]} Bg8 {[%emt 0:00:11]} 19. Bh3 {[%emt 0:02:25]} Kb8 {[%emt 0:00:
08]} 20. Be6 {[%emt 0:01:07]} Nc5 {[%emt 0:00:32]} 21. Bxg8 {[%emt 0:00:28]}
Rdxg8 {[%emt 0:00:17]} 22. Nc4 {[%emt 0:00:22]} h4 {[%emt 0:00:02]} 23. Nxe5 {
[%emt 0:02:55]} hxg3 {[%emt 0:03:37]} 24. Bf4 {[%emt 0:00:58]} Ka8 {[%emt 0:00:
25]} 25. Bxg3 {[%emt 0:00:28]} Nh5 {[%emt 0:00:41]} 26. Qg4 {[%emt 0:01:52]}
Nxg3+ {[%emt 0:00:17]} 27. Qxg3 {[%emt 0:00:03]} Re8 {[%emt 0:00:22]} 28. Ngf7
{[%emt 0:00:23]} Rh5 {[%emt 0:00:17]} 29. Rf5 {[%emt 0:00:26]} Nxe4 {[%emt 0:
00:09]} 30. Qg6 {[%emt 0:00:08]} Ng3+ {[%emt 0:00:53]} 31. Kg2 {[%emt 0:00:09]}
Rxf5 {[%emt 0:00:04]} 32. hxg3 {[%emt 0:00:14]} Qxc3 {[%emt 0:01:06]} 33. Nd6 {
[%emt 0:00:13]} Rf2+ {[%emt 0:00:34]} 34. Kh3 {[%emt 0:00:08]} Rh8+ {[%emt 0:
00:02]} 35. Kg4 {[%emt 0:00:05]} Qxa1 {[%emt 0:00:18]} 36. Qxg7 {[%emt 0:00:04]
} Qd1+ {[%emt 0:00:09]} 37. Kg5 {[%emt 0:00:06]} Qh5# {[%emt 0:00:02]} 0-1

[Event "16th EWICC 2015"]
[Site "Kutaisi"]
[Date "2015.06.01"]
[Round "2"]
[White "Zhukova, Natalia"]
[Black "Ibrahimova, Sabina"]
[Result "0-1"]
[ECO "E77"]
[WhiteElo "2456"]
[BlackElo "2272"]
[Annotator "Robot 11"]
[PlyCount "150"]
[EventDate "2015.??.??"]
[EventCountry "GEO"]
[TimeControl "900+10"]

1. d4 {[%emt 0:00:02]} Nf6 {[%emt 0:00:03]} 2. c4 {[%emt 0:00:02]} g6 {[%emt 0:
00:01]} 3. Nc3 {[%emt 0:00:01]} Bg7 {[%emt 0:00:02]} 4. e4 {[%emt 0:00:01]} d6
{[%emt 0:00:00]} 5. f4 {[%emt 0:00:02]} O-O {[%emt 0:00:03]} 6. Nf3 {[%emt 0:
00:02]} c5 {[%emt 0:00:02]} 7. d5 {[%emt 0:00:02]} e6 {[%emt 0:00:03]} 8. dxe6
{[%emt 0:00:03]} Bxe6 {[%emt 0:00:09]} 9. Bd3 {[%emt 0:00:03]} a6 {[%emt 0:01:
45]} 10. O-O {[%emt 0:00:22]} b5 {[%emt 0:00:53]} 11. cxb5 {[%emt 0:01:51]} Qb6
{[%emt 0:01:01]} 12. Na4 {[%emt 0:00:59]} Qb7 {[%emt 0:00:37]} 13. e5 {[%emt 0:
01:00]} dxe5 {[%emt 0:00:32]} 14. fxe5 {[%emt 0:00:56]} Nfd7 {[%emt 0:02:26]}
15. bxa6 {[%emt 0:01:32]} Nxa6 {[%emt 0:00:08]} 16. Nc3 {[%emt 0:00:01]} Qc7 {
[%emt 0:02:39]} 17. Be4 {[%emt 0:02:25]} Rab8 {[%emt 0:00:36]} 18. Qd6 {[%emt
0:01:20]} Qa7 {[%emt 0:02:28]} 19. Nd5 {[%emt 0:00:42]} Bxd5 {[%emt 0:01:57]}
20. Bxd5 {[%emt 0:00:02]} c4+ {[%emt 0:00:22]} 21. Kh1 {[%emt 0:00:02]} Ndc5 {
[%emt 0:01:44]} 22. Bxc4 {[%emt 0:04:24]} Rbd8 {[%emt 0:00:19]} 23. Qc6 {[%emt
0:00:04]} Nb4 {[%emt 0:00:20]} 24. Qb5 {[%emt 0:00:36]} Rb8 {[%emt 0:00:01]}
25. Bxf7+ {[%emt 0:00:06]} Rxf7 {[%emt 0:00:00]} 26. Qc4 {[%emt 0:00:01]} Qa6 {
[%emt 0:00:27]} 27. Qxa6 {[%emt 0:00:15]} Nbxa6 {[%emt 0:00:06]} 28. Be3 {
[%emt 0:00:50]} Ne6 {[%emt 0:00:15]} 29. b3 {[%emt 0:00:07]} Nb4 {[%emt 0:00:
10]} 30. Bd2 {[%emt 0:00:24]} Nd3 {[%emt 0:00:17]} 31. Ba5 {[%emt 0:01:18]} Rb5
{[%emt 0:00:24]} 32. Bc3 {[%emt 0:00:11]} Rc5 {[%emt 0:00:03]} 33. Bd2 {[%emt
0:00:21]} Nxe5 {[%emt 0:00:12]} 34. Rae1 {[%emt 0:00:17]} Nxf3 {[%emt 0:00:02]}
35. gxf3 {[%emt 0:00:02]} Rc6 {[%emt 0:00:17]} 36. b4 {[%emt 0:00:07]} Nd4 {
[%emt 0:00:05]} 37. Re8+ {[%emt 0:00:13]} Rf8 {[%emt 0:00:03]} 38. Rxf8+ {
[%emt 0:00:02]} Kxf8 {[%emt 0:00:09]} 39. a4 {[%emt 0:00:08]} Rc2 {[%emt 0:00:
17]} 40. Bf4 {[%emt 0:00:10]} Ra2 {[%emt 0:00:10]} 41. a5 {[%emt 0:00:07]} Ke7
{[%emt 0:00:10]} 42. h4 {[%emt 0:00:16]} Kd7 {[%emt 0:00:04]} 43. h5 {[%emt 0:
00:27]} Ke6 {[%emt 0:00:25]} 44. hxg6 {[%emt 0:00:07]} hxg6 {[%emt 0:00:01]}
45. Be3 {[%emt 0:00:10]} Nf5 {[%emt 0:00:19]} 46. Bf2 {[%emt 0:00:14]} Kd5 {
[%emt 0:00:05]} 47. Kg1 {[%emt 0:00:12]} Bf8 {[%emt 0:00:11]} 48. Rb1 {[%emt 0:
00:07]} Ra4 {[%emt 0:00:14]} 49. b5 {[%emt 0:00:02]} Rxa5 50. b6 {[%emt 0:00:
01]} Ra8 {[%emt 0:00:13]} 51. b7 Rb8 52. Kg2 {[%emt 0:00:33]} Nd6 {[%emt 0:00:
08]} 53. Kh3 {[%emt 0:00:16]} Rxb7 {[%emt 0:00:05]} 54. Rxb7 {[%emt 0:00:09]}
Nxb7 {[%emt 0:00:01]} 55. Kg4 {[%emt 0:00:01]} Ke6 {[%emt 0:00:03]} 56. Kg5 {
[%emt 0:00:14]} Kf7 {[%emt 0:00:01]} 57. f4 {[%emt 0:00:14]} Nd6 {[%emt 0:00:
01]} 58. Bd4 {[%emt 0:00:10]} Ne4+ {[%emt 0:00:04]} 59. Kg4 {[%emt 0:00:01]}
Ke6 {[%emt 0:00:02]} 60. Bb2 {[%emt 0:00:05]} Bh6 {[%emt 0:00:09]} 61. Be5 {
[%emt 0:00:19]} Nf2+ {[%emt 0:00:12]} 62. Kf3 {[%emt 0:00:03]} Nd3 {[%emt 0:00:
01]} 63. Bc7 {[%emt 0:00:02]} Kf5 {[%emt 0:00:00]} 64. Bd8 {[%emt 0:00:13]}
Nxf4 {[%emt 0:00:09]} 65. Kg3 {[%emt 0:00:07]} Bg5 {[%emt 0:00:12]} 66. Bc7 {
[%emt 0:00:03]} Nd5 {[%emt 0:00:08]} 67. Ba5 {[%emt 0:00:09]} Bf4+ {[%emt 0:00:
03]} 68. Kf3 {[%emt 0:00:07]} g5 {[%emt 0:00:04]} 69. Be1 {[%emt 0:00:03]} g4+
{[%emt 0:00:10]} 70. Ke2 {[%emt 0:00:03]} Ke4 {[%emt 0:00:10]} 71. Bh4 {[%emt
0:00:06]} Nc3+ {[%emt 0:00:13]} 72. Kf2 {[%emt 0:00:07]} Nd1+ {[%emt 0:00:10]}
73. Ke2 Ne3 {[%emt 0:00:01]} 74. Bf2 {[%emt 0:00:24]} Nf5 {[%emt 0:00:35]} 75.
Be1 {[%emt 0:00:16]} Bg5 {[%emt 0:00:26]} 0-1

[Event "16th EWICC 2015"]
[Site "Kutaisi"]
[Date "2015.06.01"]
[Round "3"]
[White "Arabidze, Meri"]
[Black "Daulyte, Deimante"]
[Result "0-1"]
[ECO "D38"]
[WhiteElo "2403"]
[BlackElo "2402"]
[Annotator "Robot 11"]
[PlyCount "68"]
[EventDate "2015.??.??"]
[EventCountry "GEO"]
[TimeControl "900+10"]

1. d4 {[%emt 0:00:03]} Nf6 {[%emt 0:00:02]} 2. c4 {[%emt 0:00:02]} e6 {[%emt 0:
00:03]} 3. Nf3 {[%emt 0:00:04]} d5 {[%emt 0:00:06]} 4. Nc3 {[%emt 0:00:02]} Bb4
{[%emt 0:00:05]} 5. Bg5 {[%emt 0:00:06]} h6 {[%emt 0:00:03]} 6. Bxf6 {[%emt 0:
00:03]} Qxf6 {[%emt 0:00:03]} 7. Qa4+ {[%emt 0:00:05]} Nc6 {[%emt 0:00:02]} 8.
e3 {[%emt 0:00:03]} O-O {[%emt 0:00:05]} 9. Be2 {[%emt 0:00:03]} Bd7 {[%emt 0:
00:03]} 10. Qc2 {[%emt 0:00:16]} dxc4 {[%emt 0:00:09]} 11. O-O {[%emt 0:00:26]}
Na5 {[%emt 0:00:05]} 12. Ne5 {[%emt 0:00:14]} Qe7 {[%emt 0:00:03]} 13. Nxc4 {
[%emt 0:01:41]} Nxc4 {[%emt 0:00:07]} 14. Bxc4 {[%emt 0:00:02]} Rfd8 {[%emt 0:
02:16]} 15. Bd3 {[%emt 0:00:22]} c5 {[%emt 0:01:23]} 16. a3 {[%emt 0:02:58]}
Bxc3 {[%emt 0:00:45]} 17. bxc3 {[%emt 0:00:02]} cxd4 {[%emt 0:00:02]} 18. cxd4
{[%emt 0:00:07]} Rac8 {[%emt 0:00:22]} 19. Qb2 {[%emt 0:00:32]} Bc6 {[%emt 0:
00:04]} 20. f4 {[%emt 0:00:08]} b6 {[%emt 0:01:19]} 21. a4 {[%emt 0:00:11]} Qb7
{[%emt 0:00:13]} 22. Qe2 {[%emt 0:01:18]} Qa8 {[%emt 0:01:37]} 23. a5 {[%emt 0:
00:21]} b5 {[%emt 0:00:54]} 24. a6 {[%emt 0:00:41]} Be4 {[%emt 0:01:40]} 25.
Rfc1 {[%emt 0:03:08]} b4 {[%emt 0:00:36]} 26. Bc4 {[%emt 0:00:17]} Rc7 {[%emt
0:00:37]} 27. Bb3 {[%emt 0:04:51]} Rdc8 {[%emt 0:00:47]} 28. Rxc7 {[%emt 0:00:
01]} Rxc7 {[%emt 0:00:01]} 29. Re1 {[%emt 0:00:04]} Rc3 {[%emt 0:00:09]} 30.
Qb2 {[%emt 0:00:05]} Qc6 {[%emt 0:00:35]} 31. Bd1 {[%emt 0:00:07]} Qc4 {[%emt
0:02:07]} 32. Re2 {[%emt 0:01:21]} Rc1 {[%emt 0:00:29]} 33. Re1 {[%emt 0:00:24]
} Qc3 {[%emt 0:00:31]} 34. Qe2 {[%emt 0:00:16]} b3 {[%emt 0:00:18]} 0-1